bitfinex/quotes_ETHUSD_20250908
["timestamp","ask_amount","ask_price","bid_price","bid_amount"]
[1757349206608,27.03564721,4355.3,4355.2,3.862]
[1757349206806,27.48764721,4355.3,4355.2,3.862]
[1757349207104,27.48764721,4355.3,4355.2,0.002]
[1757349207420,28.71764721,4355.3,4355.2,3.862]
[1757349207991,3.08826397,4354.9,4354.8,1.787]
[1757349208237,3.71734966,4354.9,4354.8,1.787]
[1757349208428,4.01674966,4354.9,4354.8,1.787]
[1757349208633,3.2027167,4354.8,4354.7,1.764]
[1757349209039,0.792,4354.8,4354.7,4.7869]
[1757349209189,3.0883167,4354.8,4354.7,8.6469]
[1757349209907,0.792,4354.8,4354.7,11.6469]
[1757349210107,4.3183167,4354.8,4354.7,11.6469]
[1757349210742,2.022,4354.8,4354.7,11.6469]
[1757349211704,2.022,4354.8,4354.7,14.22672991]
[1757349211705,2.46,4354.8,4354.7,14.22672991]
[1757349213044,3.69,4354.8,4354.7,11.93036048]
[1757349213258,3.69,4354.8,4354.7,8.07036048]
[1757349213559,4.482,4354.8,4354.7,11.6469]
[1757349213866,6.7783167,4354.8,4354.7,11.6469]
[1757349214459,8.0083167,4354.8,4354.7,11.6469]
[1757349215863,9.2383167,4354.8,4354.7,7.7869]
[1757349216022,9.2383167,4354.8,4354.7,11.6469]
[1757349217152,10.4683167,4354.8,4354.7,11.6469]
[1757349218460,11.6983167,4354.8,4354.7,9.3841]
[1757349218655,11.6983167,4354.8,4354.7,8.624]
[1757349218958,12.94671677,4354.8,4354.7,8.623]
[1757349219318,15.38941677,4354.8,4354.7,1.764]
[1757349219518,15.38941677,4354.8,4354.7,5.623]
[1757349219732,16.61941677,4354.8,4354.7,5.623]
[1757349220517,16.61941677,4354.8,4354.7,1.764]
[1757349220737,17.08611677,4354.8,4354.7,5.623]
[1757349221133,18.31611677,4354.8,4354.7,5.623]
[1757349222428,19.54611677,4354.8,4354.7,5.623]
[1757349222828,19.07941677,4354.8,4354.7,5.623]
[1757349223368,19.08041677,4354.8,4354.7,5.623]
[1757349223868,20.31041677,4354.8,4354.7,5.623]
[1757349224075,20.77711677,4354.8,4354.7,5.623]
[1757349224559,20.77711677,4354.8,4354.7,1.764]
[1757349224870,20.77711677,4354.8,4354.7,5.623]
[1757349225051,20.77711677,4354.8,4354.5,0.002]
[1757349225052,3.08842217,4354.6,4354.5,0.002]
[1757349225258,3.08842217,4354.6,4354.5,5.623]
[1757349225259,5.35633014,4354.6,4354.5,5.623]
[1757349225441,8.57053014,4354.6,4354.5,5.623]
[1757349225639,3.08847491,4354.5,4354.3,0.002]
[1757349225950,5.99787491,4354.5,4354.4,5.621]
[1757349226136,6.30267491,4354.5,4354.4,5.621]
[1757349226343,9.80058288,4354.5,4354.4,5.621]
[1757349227562,9.80058288,4354.5,4354.4,5.622]
[1757349227738,11.03058288,4354.5,4354.4,1.762]
[1757349228068,11.03058288,4354.5,4354.4,5.621]
[1757349228838,10.56388288,4354.5,4354.4,5.621]
[1757349229071,9.35118288,4354.5,4354.4,5.621]
[1757349229286,5.98647491,4354.5,4354.4,8.6176]
[1757349229784,6.77847491,4354.5,4354.4,8.6176]
[1757349229964,5.98647491,4354.5,4354.4,8.1863]
[1757349230268,4.482,4354.5,4354.4,8.90106048]
[1757349230455,8.00847491,4354.5,4354.4,8.90106048]
[1757349231447,8.00847491,4354.5,4354.4,8.6176]
[1757349231845,9.23847491,4354.5,4354.4,8.6176]
[1757349232432,9.23847491,4354.5,4354.4,5.9204]
[1757349232868,9.23847491,4354.5,4354.4,5.621]
[1757349233075,9.23847491,4354.5,4354.4,5.9204]
[1757349233254,10.46847491,4354.5,4354.4,5.9204]
[1757349234072,10.46847491,4354.5,4354.4,5.622]
[1757349234380,11.93323355,4354.5,4354.4,5.622]
[1757349234575,13.16323355,4354.5,4354.4,5.9214]
[1757349234775,11.69847491,4354.5,4354.4,5.9214]
[1757349235349,14.44597491,4354.5,4354.4,1.762]
[1757349235550,14.91267491,4354.5,4354.4,5.411]
[1757349235772,14.91267491,4354.5,4354.4,5.621]
[1757349235973,18.41058288,4354.5,4354.4,1.762]
[1757349236174,18.41058288,4354.5,4354.4,5.621]
[1757349236796,17.94388288,4354.5,4354.4,5.621]
[1757349236984,15.50118288,4354.5,4354.4,5.621]
[1757349237389,16.73118288,4354.5,4354.4,5.621]
[1757349237569,19.17388288,4354.5,4354.4,5.621]
[1757349237965,16.73118288,4354.5,4354.4,5.621]
[1757349238799,17.96118288,4354.5,4354.4,5.621]
[1757349239006,14.59647491,4354.5,4354.4,5.9204]
[1757349239204,14.59647491,4354.5,4354.4,8.6176]
[1757349239438,15.38847491,4354.5,4354.4,8.6176]
[1757349240066,16.61847491,4354.5,4354.4,8.6176]
[1757349241399,17.84847491,4354.5,4354.4,8.6176]
[1757349241703,15.552,4354.5,4354.4,8.6176]
[1757349242005,17.84847491,4354.5,4354.4,8.6176]
[1757349242594,15.552,4354.5,4354.4,8.6176]
[1757349242813,17.84847491,4354.5,4354.4,8.6176]
[1757349242976,19.07847491,4354.5,4354.4,8.6176]
[1757349244106,16.782,4354.5,4354.4,8.6176]
[1757349244299,18.012,4354.5,4354.4,8.6176]
[1757349245229,20.30847491,4354.5,4354.4,8.6176]
[1757349245618,19.242,4354.5,4354.4,8.6176]
[1757349245794,18.5644,4354.5,4354.4,14.19758813]
[1757349246234,18.5644,4354.5,4354.4,11.90106048]
[1757349246420,18.5644,4354.5,4354.4,14.19758813]
[1757349246703,19.3564,4354.5,4354.4,11.6176]
[1757349246901,20.5864,4354.5,4354.4,11.6176]
[1757349248216,19.68,4354.5,4354.4,44.19758813]
[1757349248422,21.0244,4354.5,4354.4,44.19758813]
[1757349248933,21.0244,4354.5,4354.4,14.19758813]
[1757349249941,22.2544,4354.5,4354.4,14.19758813]
[1757349251370,23.4844,4354.5,4354.4,14.19758813]
[1757349251847,23.37,4354.5,4354.4,14.19758813]
[1757349252413,23.37,4354.5,4354.4,44.19758813]
[1757349252715,24.6,4354.5,4354.4,44.19758813]
[1757349253147,18.45,4354.5,4354.4,44.19758813]
[1757349253373,15.7637353,4354.5,4354.4,44.19758813]
[1757349253515,15.7637353,4354.5,4354.4,44.31198813]
[1757349253716,14.761,4354.8,4354.7,2.29636943]
[1757349253959,14.761,4354.8,4354.7,39.43782991]
[1757349254162,14.761,4354.8,4354.7,42.72962991]
[1757349255363,15.991,4354.8,4354.7,42.72962991]
[1757349256350,15.991,4354.8,4354.7,43.41816364]
[1757349256748,17.221,4354.8,4354.7,42.61522991]
[1757349256931,17.5238,4354.8,4354.7,3.0]
[1757349257116,17.5238,4354.8,4354.7,6.858]
[1757349257117,18.3158,4354.8,4354.7,6.858]
[1757349257864,18.3158,4354.8,4354.7,3.0]
[1757349258076,19.5458,4354.8,4354.7,3.0]
[1757349258216,19.5458,4354.8,4354.4,1.762]
[1757349258217,3.08837304,4354.7,4354.4,1.762]
[1757349258416,1.0948,4354.5,4354.4,1.762]
[1757349258647,0.792,4354.5,4354.4,8.62]
[1757349258851,1.0948,4354.5,4354.4,8.62]
[1757349259361,0.792,4354.5,4354.4,9.3628]
[1757349259520,2.022,4354.5,4354.4,9.3628]
[1757349260135,2.022,4354.5,4354.4,8.912]
[1757349261032,3.252,4354.5,4354.4,8.912]
[1757349261226,3.5548,4354.5,4354.4,8.62]
[1757349261464,8.71537491,4354.5,4354.4,4.762]
[1757349261644,6.4189,4354.5,4354.4,8.62]
[1757349261844,3.252,4354.5,4354.4,8.62]
[1757349262034,3.252,4354.5,4354.4,4.762]
[1757349262234,4.482,4354.5,4354.4,8.619]
[1757349262444,3.69,4354.5,4354.4,14.09292765]
[1757349262625,3.69,4354.5,4354.4,12.07986048]
[1757349263024,3.69,4354.5,4354.4,11.94178813]
[1757349263221,3.69,4354.5,4354.4,9.64526048]
[1757349263424,4.92,4354.5,4354.4,9.64526048]
[1757349264919,6.15,4354.5,4354.4,9.64526048]
[1757349265121,6.15,4354.5,4354.4,11.94178813]
[1757349265335,6.15,4354.5,4354.4,14.37638813]
[1757349265975,6.15,4354.5,4354.4,44.37638813]
[1757349266333,7.38,4354.5,4354.4,44.37638813]
[1757349266545,1.37134,4354.5,4354.4,44.62512771]
[1757349266758,1.37134,4354.5,4354.4,44.37638813]
[1757349267674,1.37134,4354.5,4354.4,45.06501353]
[1757349267840,2.60134,4354.5,4354.4,45.06501353]
[1757349268875,2.60134,4354.5,4354.4,41.20801353]
[1757349269176,4.13414,4354.5,4354.4,7.05852765]
[1757349269501,6.56184,4354.5,4354.4,5.619]
[1757349269675,6.56184,4354.5,4354.4,8.619]
[1757349269875,6.56184,4354.5,4354.4,4.762]
[1757349270178,6.56184,4354.5,4354.4,8.619]
[1757349270375,7.35384,4354.5,4354.4,4.762]
[1757349270538,8.58384,4354.5,4354.4,4.762]
[1757349270872,9.02024,4354.5,4354.4,4.762]
[1757349271046,5.06134,4354.5,4354.4,8.911]
[1757349271990,6.29134,4354.5,4354.4,11.20752765]
[1757349272191,6.29134,4354.5,4354.4,11.49098813]
[1757349272395,6.29134,4354.5,4354.4,14.37638813]
[1757349272690,6.29134,4354.5,4354.4,38.90246048]
[1757349272997,6.40574,4354.5,4354.4,8.90246048]
[1757349273314,7.63574,4354.5,4354.4,5.04546048]
[1757349273452,7.63574,4354.5,4354.4,8.90246048]
[1757349273657,7.63574,4354.5,4354.4,7.34198813]
[1757349273856,7.63574,4354.5,4354.4,11.19898813]
[1757349274064,7.63574,4354.5,4354.4,11.49098813]
[1757349274481,8.86574,4354.5,4354.4,11.49098813]
[1757349274702,8.86574,4354.5,4354.4,5.04546048]
[1757349274904,8.86574,4354.5,4354.4,8.90246048]
[1757349275107,8.86574,4354.5,4354.4,11.19898813]
[1757349275303,8.86574,4354.5,4354.4,11.49098813]
[1757349275704,9.16854,4354.5,4354.4,8.90246048]
[1757349275896,10.39854,4354.5,4354.4,8.90246048]
[1757349276098,10.39854,4354.5,4354.4,5.04546048]
[1757349276300,10.39854,4354.5,4354.4,8.90246048]
[1757349277226,11.32574,4354.5,4354.4,14.40846048]
[1757349277639,11.61964,4354.5,4354.4,14.40846048]
[1757349278541,12.84964,4354.5,4354.4,14.125]
[1757349278888,15.19384,4354.5,4354.4,14.125]
[1757349279319,15.19384,4354.5,4354.4,10.268]
[1757349279533,16.42694,4354.5,4354.4,14.125]
[1757349279687,15.98584,4354.5,4354.4,14.125]
[1757349279887,17.21584,4354.5,4354.4,14.125]
[1757349280341,14.87164,4354.5,4354.4,14.125]
[1757349281027,22.22132288,4354.5,4354.4,7.268]
[1757349281225,23.45132288,4354.5,4354.4,11.125]
[1757349281714,23.45132288,4354.5,4354.4,14.125]
[1757349282045,23.45132288,4354.5,4354.4,14.4121]
[1757349282046,14.90134,4354.5,4354.4,14.4121]
[1757349282388,14.90134,4354.5,4354.4,14.125]
[1757349282594,16.42524,4354.5,4354.4,14.125]
[1757349284040,17.65524,4354.5,4354.4,14.125]
[1757349284244,17.36134,4354.5,4354.4,14.125]
[1757349285332,18.88524,4354.5,4354.4,14.125]
[1757349286031,21.22944,4354.5,4354.4,14.125]
[1757349286324,18.88524,4354.5,4354.4,14.125]
[1757349286689,20.11524,4354.5,4354.4,14.125]
[1757349288046,21.34524,4354.5,4354.4,14.125]
[1757349288531,24.84624797,4354.5,4354.4,14.125]
[1757349288721,29.48692288,4354.5,4354.4,14.125]
[1757349289408,28.42044797,4354.5,4354.4,10.268]
[1757349289596,30.71692288,4354.5,4354.4,14.125]
[1757349291129,31.94692288,4354.5,4354.4,14.125]
[1757349292303,31.94692288,4354.5,4354.4,10.268]
[1757349292510,33.17692288,4354.5,4354.4,14.125]
[1757349293300,33.17692288,4354.5,4354.4,10.268]
[1757349293537,33.17692288,4354.5,4354.4,14.125]
[1757349294231,34.40692288,4354.5,4354.4,14.125]
[1757349294936,34.40792288,4354.5,4354.4,14.125]
[1757349295733,35.63792288,4354.5,4354.4,14.125]
[1757349296996,36.86792288,4354.5,4354.4,14.125]
[1757349297803,36.86792288,4354.5,4354.4,10.268]
[1757349298207,36.86792288,4354.5,4354.4,14.125]
[1757349298407,38.09792288,4354.5,4354.4,14.125]
[1757349299126,38.09792288,4354.5,4354.4,7.268]
[1757349299442,38.09792288,4354.5,4354.4,11.125]
[1757349299799,39.32792288,4354.5,4354.4,11.125]
[1757349300607,38.88682288,4354.5,4354.4,11.125]
[1757349300994,39.32792288,4354.5,4354.4,11.125]
[1757349301194,40.55792288,4354.5,4354.4,11.125]
[1757349302545,48.86799826,4354.5,4354.4,11.125]
[1757349302743,48.86799826,4354.5,4354.4,1.762]
[1757349302945,3.20292765,4354.4,4354.3,0.002]
[1757349303126,3.20292765,4354.4,4354.3,5.621]
[1757349303127,5.47083562,4354.4,4354.3,5.621]
[1757349303435,3.08858039,4354.3,4354.2,1.764]
[1757349303642,3.08858039,4354.3,4354.2,5.621]
[1757349303643,3.52968039,4354.3,4354.2,5.621]
[1757349303854,7.39778039,4354.3,4354.2,1.764]
[1757349304146,7.39778039,4354.3,4354.2,5.621]
[1757349304315,9.66568836,4354.3,4354.2,5.621]
[1757349304942,9.66568836,4354.3,4354.2,1.764]
[1757349305109,9.66568836,4354.3,4354.2,5.621]
[1757349305299,10.89568836,4354.3,4354.2,5.621]
[1757349305506,10.45458836,4354.3,4354.2,5.621]
[1757349305706,7.81648836,4354.3,4354.2,5.621]
[1757349306451,10.89568836,4354.3,4354.2,1.764]
[1757349306604,12.12568836,4354.3,4354.2,5.621]
[1757349307227,11.39068836,4354.3,4354.2,5.621]
[1757349307429,9.04648836,4354.3,4354.2,5.621]
[1757349308047,10.58208836,4354.3,4354.2,5.621]
[1757349308344,13.40428836,4354.3,4354.2,5.621]
[1757349309554,14.63428836,4354.3,4354.2,5.621]
[1757349310052,11.50648836,4354.3,4354.2,5.937]
[1757349310258,6.942,4354.3,4354.2,5.937]
[1757349310550,6.942,4354.3,4354.2,11.7307]
[1757349310551,6.15,4354.3,4354.2,11.7307]
[1757349310708,8.172,4354.3,4354.2,11.7307]
[1757349310912,10.46858039,4354.3,4354.2,11.7307]
[1757349311657,8.172,4354.3,4354.2,9.4075]
[1757349311820,8.172,4354.3,4354.2,11.7307]
[1757349312020,7.38,4354.3,4354.2,11.7307]
[1757349312220,8.61,4354.3,4354.2,11.7307]
[1757349312545,8.61,4354.3,4354.2,12.01416048]
[1757349313556,9.84,4354.3,4354.2,12.01416048]
[1757349313858,9.84,4354.3,4354.2,14.31079361]
[1757349314828,11.07,4354.3,4354.2,44.31079361]
[1757349315065,11.07,4354.3,4354.2,44.55953319]
[1757349315428,11.07,4354.3,4354.2,44.31079361]
[1757349315853,11.07,4354.3,4354.2,44.55953319]
[1757349316057,10.54802802,4354.3,4354.2,45.24813172]
[1757349316265,11.77802802,4354.3,4354.2,45.24813172]
[1757349316417,33.35234,4354.5,4354.4,2.29652765]
[1757349316418,20.911,4354.5,4354.4,2.29652765]
[1757349316616,11.36317803,4354.5,4354.4,39.26692765]
[1757349316818,1e-08,4354.5,4354.4,42.54680133]
[1757349317114,1e-08,4354.5,4354.4,43.07900139]
[1757349317374,1e-08,4354.5,4354.4,42.83026181]
[1757349317551,1.23000001,4354.5,4354.4,42.83026181]
[1757349318474,1.23000001,4354.5,4354.4,36.67773416]
[1757349318678,1.23000001,4354.5,4354.4,42.83026181]
[1757349318892,1.23000001,4354.5,4354.4,40.24916048]
[1757349319043,2.46000001,4354.5,4354.4,40.24916048]
[1757349319718,2.46000001,4354.5,4354.4,36.39316048]
[1757349319837,2.46000001,4354.5,4354.4,4.172]
[1757349320291,3.69000001,4354.5,4354.4,9.9657]
[1757349321077,3.80440001,4354.5,4354.4,10.24916048]
[1757349321685,5.03440001,4354.5,4354.4,10.24916048]
[1757349323077,6.26440001,4354.5,4354.4,10.24916048]
[1757349323778,6.26440001,4354.5,4354.4,7.172]
[1757349324373,7.49440001,4354.5,4354.4,7.172]
[1757349324679,7.49440001,4354.5,4354.4,7.6425]
[1757349325536,8.72440001,4354.5,4354.4,7.6425]
[1757349325973,8.72440001,4354.5,4354.4,9.9657]
[1757349326976,9.95440001,4354.5,4354.4,10.24916048]
[1757349327178,9.84000001,4354.5,4354.4,10.49790006]
[1757349327367,9.84000001,4354.5,4354.4,40.24916048]
[1757349328273,11.07000001,4354.5,4354.4,7.45546048]
[1757349328749,11.07000001,4354.5,4354.4,7.92596048]
[1757349329151,11.07000001,4354.5,4354.4,7.45546048]
[1757349329352,11.37560001,4354.5,4354.4,3.0]
[1757349329560,2.29658039,4354.3,4354.2,1.764]
[1757349329770,2.29658039,4354.3,4354.2,8.619]
[1757349329979,4.97188039,4354.3,4354.2,5.619]
[1757349330679,4.97188039,4354.3,4354.2,8.619]
[1757349331003,6.20188039,4354.3,4354.2,8.619]
[1757349331398,6.65438039,4354.3,4354.2,8.619]
[1757349331773,7.44638039,4354.3,4354.2,4.764]
[1757349331980,9.66210592,4354.3,4354.2,8.619]
[1757349332177,10.89210592,4354.3,4354.2,8.619]
[1757349333101,10.89210592,4354.3,4354.2,4.764]
[1757349333267,10.89210592,4354.3,4354.2,8.619]
[1757349333802,12.12210592,4354.3,4354.2,8.619]
[1757349335087,13.35210592,4354.3,4354.2,8.619]
[1757349335644,13.35210592,4354.3,4354.2,4.764]
[1757349335790,13.35210592,4354.3,4354.2,8.619]
[1757349336625,14.58210592,4354.3,4354.2,8.619]
[1757349337132,14.58210592,4354.3,4354.2,4.764]
[1757349337333,14.58210592,4354.3,4354.2,8.619]
[1757349337548,14.58210592,4354.3,4354.2,4.764]
[1757349337692,14.58210592,4354.3,4354.2,8.619]
[1757349338014,14.58210592,4354.3,4354.2,5.619]
[1757349338216,15.81210592,4354.3,4354.2,5.619]
[1757349338688,15.81210592,4354.3,4354.2,1.764]
[1757349338889,15.81210592,4354.3,4354.0,0.002]
[1757349338890,3.08868588,4354.1,4354.0,0.002]
[1757349339086,4.79574702,4354.1,4354.0,5.619]
[1757349339290,7.97814702,4354.1,4354.0,5.619]
[1757349339526,7.97814702,4354.1,4354.0,1.764]
[1757349339726,9.20814702,4354.1,4354.0,1.764]
[1757349339933,9.20814702,4354.1,4354.0,5.619]
[1757349340433,6.32164702,4354.1,4354.0,5.619]
[1757349340594,9.20814702,4354.1,4354.0,1.764]
[1757349340794,9.20814702,4354.1,4354.0,5.619]
[1757349341111,10.43814702,4354.1,4354.0,5.619]
[1757349342029,7.43724702,4354.1,4354.0,5.619]
[1757349342234,5.54868588,4354.1,4354.0,5.619]
[1757349342441,6.77868588,4354.1,4354.0,5.9073]
[1757349343008,3.69,4354.1,4354.0,11.2466]
[1757349343210,4.482,4354.1,4354.0,11.98646048]
[1757349343456,3.69,4354.1,4354.0,11.98646048]
[1757349344048,3.69,4354.1,4354.0,14.28319911]
[1757349344049,5.0344,4354.1,4354.0,14.28319911]
[1757349344438,5.0344,4354.1,4354.0,11.98646048]
[1757349345224,6.2644,4354.1,4354.0,11.98646048]
[1757349345451,6.2644,4354.1,4354.0,8.13146048]
[1757349345668,6.2644,4354.1,4354.0,9.3647]
[1757349345970,6.2644,4354.1,4354.0,8.9083]
[1757349346351,6.5603,4354.1,4354.0,8.62]
[1757349346519,8.5823,4354.1,4354.0,8.62]
[1757349346721,10.87898588,4354.1,4354.0,8.62]
[1757349347166,12.93453789,4354.1,4354.0,4.764]
[1757349347455,12.93453789,4354.1,4354.0,8.62]
[1757349347456,15.82103789,4354.1,4354.0,8.62]
[1757349347863,17.05103789,4354.1,4354.0,8.62]
[1757349348222,17.05103789,4354.1,4354.0,4.764]
[1757349348601,13.86863789,4354.1,4354.0,8.62]
[1757349348883,11.57195201,4354.1,4354.0,8.62]
[1757349349022,13.86863789,4354.1,4354.0,8.62]
[1757349349221,15.09863789,4354.1,4354.0,8.62]
[1757349350716,15.09863789,4354.1,4354.0,8.9083]
[1757349350921,16.32863789,4354.1,4354.0,8.9083]
[1757349351347,16.32863789,4354.1,4354.0,8.62]
[1757349351749,16.32963789,4354.1,4354.0,8.62]
[1757349351945,14.03295201,4354.1,4354.0,8.62]
[1757349352159,15.26295201,4354.1,4354.0,8.62]
[1757349352549,13.2074,4354.1,4354.0,9.3647]
[1757349353036,13.2074,4354.1,4354.0,8.62]
[1757349353637,14.7333,4354.1,4354.0,8.62]
[1757349353841,19.91648588,4354.1,4354.0,8.62]
[1757349354249,19.47628588,4354.1,4354.0,8.62]
[1757349354462,17.02998588,4354.1,4354.0,8.62]
[1757349354835,21.51064965,4354.1,4354.0,8.62]
[1757349355045,22.74064965,4354.1,4354.0,8.62]
[1757349355435,22.30044965,4354.1,4354.0,8.62]
[1757349355634,19.85414965,4354.1,4354.0,8.62]
[1757349356252,22.74064965,4354.1,4354.0,8.62]
[1757349356470,23.97064965,4354.1,4354.0,8.62]
[1757349356676,23.53044965,4354.1,4354.0,8.62]
[1757349357770,25.20064965,4354.1,4354.0,8.619]
[1757349358879,21.90384965,4354.1,4354.0,8.619]
[1757349359179,21.90384965,4354.1,4354.0,9.3637]
[1757349359180,20.30968588,4354.1,4354.0,9.3637]
[1757349359344,21.53968588,4354.1,4354.0,9.3637]
[1757349360040,19.243,4354.1,4354.0,8.619]
[1757349360352,24.28188588,4354.1,4354.0,8.619]
[1757349360548,24.28188588,4354.1,4354.0,4.764]
[1757349360549,24.72208588,4354.1,4354.0,4.764]
[1757349360747,28.21999385,4354.1,4354.0,8.619]
[1757349361072,28.21999385,4354.1,4354.0,4.764]
[1757349361381,28.21999385,4354.1,4354.0,5.619]
[1757349362038,29.44999385,4354.1,4354.0,5.619]
[1757349363779,30.67999385,4354.1,4354.0,5.619]
[1757349364951,30.67999385,4354.1,4354.0,1.764]
[1757349365279,31.90999385,4354.1,4354.0,1.764]
[1757349365482,31.90999385,4354.1,4354.0,5.619]
[1757349365863,31.90999385,4354.1,4354.0,1.764]
[1757349366065,31.90999385,4354.1,4354.0,5.619]
[1757349366579,33.13999385,4354.1,4354.0,1.764]
[1757349366786,33.13999385,4354.1,4354.0,5.619]
[1757349366968,29.95759385,4354.1,4354.0,5.9065]
[1757349367557,29.95759385,4354.1,4354.0,6.3701]
[1757349368211,25.831,4354.1,4354.0,11.6615]
[1757349368505,25.831,4354.1,4354.0,11.94496048]
[1757349368696,25.831,4354.1,4354.0,11.6615]
[1757349368843,26.623,4354.1,4354.0,11.6615]
[1757349369369,30.14968588,4354.1,4354.0,11.6615]
[1757349369693,30.14968588,4354.1,4354.0,8.9065]
[1757349370038,30.14968588,4354.1,4354.0,5.9065]
[1757349370285,32.41759385,4354.1,4354.0,5.619]
[1757349370645,33.96119385,4354.1,4354.0,1.764]
[1757349370955,33.96119385,4354.1,4354.0,5.619]
[1757349371176,36.75379385,4354.1,4354.0,5.619]
[1757349371552,36.75379385,4354.1,4354.0,1.764]
[1757349371953,36.75379385,4354.1,4353.1,0.02]
[1757349371954,0.792,4353.5,4353.1,0.02]
[1757349372196,0.792,4353.5,4352.8,0.025]
[1757349372197,2.29731902,4352.9,4352.8,0.025]
[1757349372415,3.86237558,4352.9,4352.8,3.88]
[1757349372689,2.29768852,4352.2,4352.1,0.02]
[1757349372855,3.08968852,4352.2,4352.1,0.02]
[1757349373222,3.40328852,4352.2,4352.1,0.02]
[1757349373704,4.63328852,4352.2,4352.1,0.02]
[1757349373893,5.60563882,4352.2,4352.1,0.02]
[1757349374095,5.60563882,4352.2,4352.1,3.878]
[1757349374297,5.60563882,4352.2,4352.1,0.02]
[1757349374501,5.60563882,4352.2,4352.1,3.878]
[1757349374796,7.92933882,4352.2,4352.1,3.878]
[1757349375217,9.15933882,4352.2,4352.1,3.878]
[1757349375517,9.15933882,4352.2,4352.1,0.02]
[1757349375719,9.15933882,4352.2,4352.1,3.878]
[1757349375920,6.83563882,4352.2,4352.1,3.878]
[1757349376120,6.83563882,4352.2,4352.1,3.877]
[1757349376620,10.38933882,4352.2,4352.1,0.02]
[1757349376807,10.85823882,4352.2,4352.1,3.878]
[1757349378112,12.08823882,4352.2,4352.1,3.878]
[1757349378421,12.08823882,4352.2,4352.1,0.02]
[1757349378603,12.08823882,4352.2,4352.1,3.877]
[1757349378810,12.08823882,4352.2,4352.1,5.64]
[1757349379005,12.08823882,4352.2,4352.1,1.783]
[1757349379225,12.08823882,4352.2,4352.1,5.64]
[1757349379522,13.31823882,4352.2,4352.1,5.64]
[1757349380323,12.84933882,4352.2,4352.1,5.64]
[1757349380726,11.75563882,4352.2,4352.1,5.64]
[1757349382000,12.98563882,4352.2,4352.1,5.64]
[1757349382200,3.09000533,4351.6,4351.5,0.4586]
[1757349382391,3.09000533,4351.6,4351.5,2.2216]
[1757349382602,3.09000533,4351.6,4351.5,4.8005]
[1757349383051,2.29774132,4352.1,4351.5,4.8005]
[1757349383212,2.29796619,4351.7,4351.5,2.0505]
[1757349383411,3.08996619,4351.7,4351.6,6.1484]
[1757349383647,3.08996619,4351.7,4351.6,6.4359]
[1757349384229,0.792,4351.7,4351.6,6.8995]
[1757349384431,3.08995252,4351.7,4351.6,6.8995]
[1757349384594,0.792,4351.7,4351.6,6.8995]
[1757349384797,4.31995252,4351.7,4351.6,6.8995]
[1757349385037,2.022,4351.7,4351.6,6.8995]
[1757349385334,4.31995252,4351.7,4351.6,6.8995]
[1757349385531,2.022,4351.7,4351.6,6.8995]
[1757349385733,2.022,4351.7,4351.6,9.8995]
[1757349385941,2.022,4351.7,4351.6,10.18296048]
[1757349386099,2.022,4351.7,4351.6,9.8995]
[1757349386100,5.54995252,4351.7,4351.6,9.8995]
[1757349386701,3.252,4351.7,4351.6,9.8995]
[1757349387522,4.482,4351.7,4351.6,9.8995]
[1757349387724,6.77995252,4351.7,4351.6,9.8995]
[1757349388155,4.482,4351.7,4351.6,9.8995]
[1757349388450,4.482,4351.7,4351.6,9.9015]
[1757349388654,4.482,4351.7,4351.6,12.48296581]
[1757349388655,3.69,4351.7,4351.6,12.48296581]
[1757349388853,4.92,4351.7,4351.6,12.48296581]
[1757349389151,4.92,4351.7,4351.6,10.18496048]
[1757349390341,6.15,4351.7,4351.6,6.0445]
[1757349390559,6.15,4351.7,4351.6,9.9015]
[1757349391156,6.942,4351.7,4351.6,3.2895]
[1757349391345,6.942,4351.7,4351.6,7.1465]
[1757349391667,9.23995252,4351.7,4351.6,7.1465]
[1757349391873,10.46995252,4351.7,4351.6,7.1465]
[1757349392075,8.172,4351.7,4351.6,7.6101]
[1757349392768,8.172,4351.7,4351.6,9.9015]
[1757349393174,9.402,4351.7,4351.6,9.9015]
[1757349394572,10.632,4351.7,4351.6,7.6101]
[1757349395158,12.92995252,4351.7,4351.6,7.1465]
[1757349395363,10.632,4351.7,4351.6,7.6101]
[1757349396075,11.862,4351.7,4351.6,7.6101]
[1757349396773,11.862,4351.7,4351.6,3.002]
[1757349396774,14.15995252,4351.7,4351.6,3.002]
[1757349396934,14.47205252,4351.7,4351.6,6.859]
[1757349397360,15.70205252,4351.7,4351.6,6.859]
[1757349397563,15.38995252,4351.7,4351.6,6.859]
[1757349398805,16.93205252,4351.7,4351.6,3.002]
[1757349398991,16.93205252,4351.7,4351.6,6.859]
[1757349399880,14.6341,4351.7,4351.6,6.859]
[1757349400049,15.552,4351.7,4351.6,6.859]
[1757349400879,15.552,4351.7,4351.6,0.002]
[1757349400880,22.39850188,4351.7,4351.6,0.002]
[1757349401087,2.29803961,4351.6,4351.3,1.763]
[1757349401287,6.01695814,4351.5,4351.4,3.857]
[1757349401455,6.32905814,4351.5,4351.4,3.857]
[1757349402236,6.32905814,4351.5,4351.1,1.785]
[1757349402237,0.792,4351.4,4351.1,1.785]
[1757349402448,3.40231658,4351.2,4351.1,1.785]
[1757349402659,3.40231658,4351.2,4351.1,5.642]
[1757349402975,6.32921658,4351.2,4351.1,5.642]
[1757349404269,3.09037504,4350.9,4350.4,1.763]
[1757349404468,3.09037504,4350.9,4350.8,3.882]
[1757349404673,8.02423905,4350.9,4350.8,3.882]